[Event "WJCC U20 Girls 2019"]
[Site "New Delhi"]
[Date "2019.10.16"]
[Round "2.37"]
[White "Arushi Kotwal"]
[Black "Tamarozi, Isabelle"]
[Result "1/2-1/2"]
[ECO "E97"]
[WhiteElo "1657"]
[BlackElo "2029"]
[Annotator "NA"]
[PlyCount "89"]
[EventDate "2019.10.15"]
[EventType "swiss"]
[EventCountry "IND"]
[SourceTitle "playchess.com"]
[Source "ChessBase"]
[SourceQuality "1"]
[TimeControl "40/5400+30:1800+30"]

1. d4 {[%emt 0:00:00]} Nf6 {[%emt 0:00:00]} 2. Nf3 {[%emt 0:00:00]} g6 {[%emt 0:00:00]} 3. c4 {[%emt 0:00:00]} Bg7 {[%emt 0:00:20]} 4. Nc3 {[%emt 0:00:00]} O-O {[%emt 0:00:31]} 5. e4 {[%emt 0:00:00]} d6 {[%emt 0:00:31]} 6. Be2 {[%emt 0:00:02]} e5 {[%emt 0:01:30]} 7. O-O {[%emt 0:00:14]} Nc6 {[%emt 0:00:30]} 8. dxe5 {[%emt 0:00:10]} Nxe5 {[%emt 0:04:43]} 9. Nxe5 {[%emt 0:01:15]} dxe5 {[%emt 0:00:07]} 10. Bg5 {[%emt 0:04:15]} c6 {[%emt 0:03:39]} 11. Qxd8 {[%emt 0:02:19]} Rxd8 {[%emt 0:00:09]} 12. Rfd1 {[%emt 0:00:52]} Be6 {[%emt 0:02:56]} 13. Be3 {[%emt 0:01:41]} Nd7 {[%emt 0:07:14]} 14. b3 {[%emt 0:08:17]} h6 {[%emt 0:09:17]} 15. Rd2 {[%emt 0:10:08]} f5 {[%emt 0:04:09]} 16. f3 {[%emt 0:01:34]} f4 {[%emt 0:04:57]} 17. Bf2 {[%emt 0:00:32]} Bf8 {[%emt 0:03:11]} 18. Rad1 {[%emt 0:04:27]} Bb4 {[%emt 0:01:46]} 19. Rd3 {[%emt 0:01:20]} Kf8 {[%emt 0:11:52]} 20. g4 {[%emt 0:04:35]} Ke7 {[%emt 0:03:20]} 21. Bh4+ {[%emt 0:04:39]} g5 {[%emt 0:02:06]} 22. Bf2 {[%emt 0:00:05]} Rh8 {[%emt 0:05:25]} 23. Na4 {[%emt 0:12:08]} b6 {[%emt 0:03:32]} 24. Ra1 {[%emt 0:04:17]} Kf6 {[%emt 0:16:22]} 25. Rad1 {[%emt 0:03:27]} Rh7 {[%emt 0:02:09]} 26. Bf1 {[%emt 0:08:35]} Rah8 {[%emt 0:02:00]} 27. h3 {[%emt 0:01:59]} h5 {[%emt 0:03:05]} 28. Bg2 {[%emt 0:00:44]} Ke7 {[%emt 0:01:30]} 29. Kf1 {[%emt 0:01:47]} hxg4 {[%emt 0:03:23]} 30. hxg4 {[%emt 0:00:37]} Nf6 {[%emt 0:01:37]} 31. Bg1 {[%emt 0:03:23]} Nd7 {[%emt 0:02:11]} 32. Bf2 {[%emt 0:00:27]} Nf8 {[%emt 0:01:14]} 33. Rd8 {[%emt 0:03:01]} Nd7 {[%emt 0:00:12]} 34. Rxh8 {[%emt 0:00:20]} Rxh8 {[%emt 0:00:03]} 35. Be1 {[%emt 0:08:30]} Bd6 {[%emt 0:01:08]} 36. Nb2 {[%emt 0:03:11]} b5 {[%emt 0:00:42]} 37. cxb5 {[%emt 0:02:29]} cxb5 {[%emt 0:00:02]} 38. Nd3 {[%emt 0:00:28]} Rc8 {[%emt 0:00:55]} 39. Rc1 {[%emt 0:06:33]} Rxc1 {[%emt 0:00:30]} 40. Nxc1 {[%emt 0:00:05]} b4 {[%emt 0:00:33]} 41. Nd3 {[%emt 0:30:32]} a5 {[%emt 0:30:20]} 42. Ke2 {[%emt 0:00:00]} Nb8 {[%emt 0:00:00]} 43. Nb2 {[%emt 0:00:00]} Bc5 {[%emt 0:00:00]} 44. Kd3 {[%emt 0:00:00]} Nc6 {[%emt 0:00:00]} 45. Nc4 {[%emt 0:00:00]} 1/2-1/2

[Event "WJCC U20 Girls 2019"]
[Site "New Delhi"]
[Date "2019.10.16"]
[Round "2.38"]
[White "Cosme Contreras, Trilce"]
[Black "Jayaweera, Sayuni Gihansa"]
[Result "1-0"]
[ECO "D85"]
[WhiteElo "2027"]
[BlackElo "1788"]
[Annotator "NA"]
[PlyCount "111"]
[EventDate "2019.10.15"]
[EventType "swiss"]
[EventCountry "IND"]
[SourceTitle "playchess.com"]
[Source "ChessBase"]
[SourceQuality "1"]
[TimeControl "40/5400+30:1800+30"]

1. d4 {[%emt 0:00:00]} Nf6 {[%emt 0:00:00]} 2. c4 {[%emt 0:00:00]} g6 {[%emt 0:00:00]} 3. Nc3 {[%emt 0:00:00]} d5 {[%emt 0:00:16]} 4. cxd5 {[%emt 0:00:01]} Nxd5 {[%emt 0:00:15]} 5. e4 {[%emt 0:00:06]} Nxc3 {[%emt 0:00:05]} 6. bxc3 {[%emt 0:00:04]} Bg7 {[%emt 0:00:08]} 7. Nf3 {[%emt 0:01:35]} c5 {[%emt 0:00:23]} 8. Rb1 {[%emt 0:01:01]} cxd4 {[%emt 0:06:29]} 9. cxd4 {[%emt 0:00:05]} Qa5+ {[%emt 0:03:37]} 10. Bd2 {[%emt 0:06:19]} Qxa2 {[%emt 0:00:49]} 11. Be2 {[%emt 0:02:46]} b6 {[%emt 0:04:27]} 12. O-O {[%emt 0:04:37]} O-O {[%emt 0:00:37]} 13. Qc1 {[%emt 0:18:22]} Bb7 {[%emt 0:07:57]} 14. Bc4 {[%emt 0:17:07]} Qa4 {[%emt 0:00:18]} 15. Bb5 {[%emt 0:01:03]} Qa2 {[%emt 0:00:11]} 16. Re1 {[%emt 0:04:36]} Rc8 {[%emt 0:02:27]} 17. Qd1 {[%emt 0:00:29]} Rc2 {[%emt 0:12:41]} 18. Ra1 {[%emt 0:02:05]} Qb2 {[%emt 0:01:43]} 19. Ba4 {[%emt 0:00:29]} Rc8 {[%emt 0:05:12]} 20. Rb1 {[%emt 0:00:13]} Qa2 {[%emt 0:00:09]} 21. Bb3 {[%emt 0:00:38]} Qa6 {[%emt 0:01:20]} 22. Ng5 {[%emt 0:05:56]} Rf8 {[%emt 0:15:49]} 23. Bxf7+ {[%emt 0:06:29]} Kh8 {[%emt 0:00:48]} 24. Qb3 {[%emt 0:01:55]} Nc6 {[%emt 0:03:55]} 25. Bc4 {[%emt 0:01:34]} b5 {[%emt 0:01:04]} 26. Bxb5 {[%emt 0:00:59]} Qb6 {[%emt 0:00:07]} 27. Nf7+ {[%emt 0:04:41]} Rxf7 {[%emt 0:00:32]} 28. Qxf7 {[%emt 0:00:05]} Rf8 {[%emt 0:00:26]} 29. Bxc6 {[%emt 0:03:54]} Qxd4 {[%emt 0:03:54]} 30. Be3 {[%emt 0:00:07]} Qd6 {[%emt 0:03:15]} 31. Qxf8+ {[%emt 0:02:46]} Bxf8 {[%emt 0:00:09]} 32. Bxb7 {[%emt 0:00:04]} a5 {[%emt 0:01:09]} 33. Red1 {[%emt 0:00:26]} Qc7 {[%emt 0:01:31]} 34. Bb6 {[%emt 0:00:53]} Qf4 {[%emt 0:01:40]} 35. Bxa5 {[%emt 0:01:24]} h5 {[%emt 0:00:10]} 36. g3 {[%emt 0:04:53]} Qe5 {[%emt 0:00:52]} 37. Rd5 {[%emt 0:00:51]} Qe6 {[%emt 0:01:14]} 38. Rd8 {[%emt 0:01:05]} Qf6 {[%emt 0:02:39]} 39. Rc1 {[%emt 0:00:46]} Kh7 {[%emt 0:00:34]} 40. Bc3 {[%emt 0:00:14]} Qf3 {[%emt 0:01:21]} 41. Be5 {[%emt 0:33:37]} h4 {[%emt 0:32:36]} 42. gxh4 {[%emt 0:01:11]} Bg7 {[%emt 0:00:48]} 43. Bg3 {[%emt 0:00:26]} Kh6 {[%emt 0:00:38]} 44. Rd7 {[%emt 0:00:54]} Kh5 {[%emt 0:01:45]} 45. Rxe7 {[%emt 0:03:40]} Bh6 {[%emt 0:01:14]} 46. Rc5+ {[%emt 0:00:38]} g5 {[%emt 0:00:14]} 47. hxg5 {[%emt 0:00:24]} Bf8 {[%emt 0:01:06]} 48. Rh7+ {[%emt 0:00:53]} Kg6 {[%emt 0:00:03]} 49. Rcc7 {[%emt 0:00:22]} Kxg5 {[%emt 0:00:16]} 50. Rcf7 {[%emt 0:01:37]} Qd1+ {[%emt 0:00:13]} 51. Kg2 {[%emt 0:00:06]} Bh6 {[%emt 0:00:12]} 52. Bc8 {[%emt 0:01:00]} Kg6 {[%emt 0:00:11]} 53. Bf5+ {[%emt 0:00:09]} Kg5 {[%emt 0:00:04]} 54. h4+ {[%emt 0:00:50]} Kh5 {[%emt 0:00:07]} 55. Rxh6+ {[%emt 0:00:08]} Kxh6 {[%emt 0:00:07]} 56. Rh7# {[%emt 0:00:36]} 1-0

[Event "WJCC U20 Girls 2019"]
[Site "New Delhi"]
[Date "2019.10.16"]
[Round "2.39"]
[White "Dahampriya, H K T Dewnethmie"]
[Black "Chandreyee, Hajra"]
[Result "1/2-1/2"]
[ECO "B15"]
[WhiteElo "1629"]
[BlackElo "2024"]
[Annotator "NA"]
[PlyCount "97"]
[EventDate "2019.10.15"]
[EventType "swiss"]
[EventCountry "IND"]
[SourceTitle "playchess.com"]
[Source "ChessBase"]
[SourceQuality "1"]
[TimeControl "40/5400+30:1800+30"]

1. e4 {[%emt 0:00:00]} c6 {[%emt 0:00:00]} 2. d4 {[%emt 0:00:00]} d5 {[%emt 0:00:00]} 3. Nc3 {[%emt 0:00:00]} dxe4 {[%emt 0:00:00]} 4. Nxe4 {[%emt 0:00:00]} Nf6 {[%emt 0:00:00]} 5. Nxf6+ {[%emt 0:00:36]} exf6 {[%emt 0:00:02]} 6. h3 {[%emt 0:00:41]} Bd6 {[%emt 0:00:23]} 7. Nf3 {[%emt 0:00:19]} O-O {[%emt 0:00:19]} 8. Be2 {[%emt 0:01:20]} Re8 {[%emt 0:00:50]} 9. O-O {[%emt 0:00:22]} Nd7 {[%emt 0:00:17]} 10. c4 {[%emt 0:04:00]} Nf8 {[%emt 0:00:12]} 11. Bd3 $11 {[%emt 0:13:29]} Ng6 {[%emt 0:01:22]} 12. Qc2 {[%emt 0:00:28]} Bc7 {[%emt 0:02:09]} 13. Bd2 {[%emt 0:02:49]} Be6 {[%emt 0:01:16]} 14. Bf5 {[%emt 0:16:09]} Qd7 {[%emt 0:03:59]} 15. Bxe6 {[%emt 0:00:54]} fxe6 {[%emt 0:00:13]} 16. Rad1 {[%emt 0:03:15]} Rad8 {[%emt 0:05:39]} 17. Rfe1 {[%emt 0:03:37]} Qf7 {[%emt 0:04:41]} 18. Be3 {[%emt 0:07:28]} Ne7 {[%emt 0:01:05]} 19. Qc1 {[%emt 0:00:56]} Ng6 {[%emt 0:10:10]} 20. Qc2 {[%emt 0:02:47]} a6 {[%emt 0:02:26]} 21. b3 {[%emt 0:01:24]} Rd7 {[%emt 0:03:53]} 22. Re2 {[%emt 0:04:36]} Red8 {[%emt 0:02:53]} 23. Rde1 {[%emt 0:06:08]} Ba5 {[%emt 0:05:48]} 24. Bd2 {[%emt 0:00:58]} Bxd2 {[%emt 0:02:01]} 25. Rxd2 {[%emt 0:00:12]} e5 {[%emt 0:00:34]} 26. dxe5 {[%emt 0:06:21]} Rxd2 {[%emt 0:00:10]} 27. Nxd2 {[%emt 0:00:04]} Nxe5 {[%emt 0:00:11]} 28. Nf1 {[%emt 0:02:26]} Qd7 {[%emt 0:01:38]} 29. Ne3 {[%emt 0:00:54]} Re8 {[%emt 0:02:24]} 30. Rd1 {[%emt 0:00:30]} Qf7 {[%emt 0:00:55]} 31. Rd6 {[%emt 0:06:33]} Qg6 {[%emt 0:02:34]} 32. Qxg6 {[%emt 0:00:30]} Nxg6 {[%emt 0:00:05]} 33. Rd7 {[%emt 0:00:14]} Re7 {[%emt 0:00:31]} 34. Rxe7 {[%emt 0:00:21]} Nxe7 {[%emt 0:00:09]} 35. Kf1 {[%emt 0:11:10]} Kf7 {[%emt 0:00:16]} 36. Ke2 {[%emt 0:01:04]} Ke6 {[%emt 0:00:07]} 37. f4 {[%emt 0:00:40]} c5 {[%emt 0:01:00]} 38. Kd3 {[%emt 0:01:11]} f5 {[%emt 0:01:24]} 39. g4 {[%emt 0:02:19]} g6 {[%emt 0:00:39]} 40. g5 {[%emt 0:00:20]} Nc6 {[%emt 0:03:07]} 41. Nc2 {[%emt 0:30:27]} Nd8 {[%emt 0:30:50]} 42. Ne1 {[%emt 0:02:03]} Nf7 {[%emt 0:00:32]} 43. Nf3 {[%emt 0:00:23]} Nd6 {[%emt 0:00:18]} 44. Nd2 {[%emt 0:00:16]} Ne8 {[%emt 0:06:52]} 45. Nf1 {[%emt 0:00:49]} Nd6 {[%emt 0:01:47]} 46. Nd2 {[%emt 0:00:11]} Ne8 {[%emt 0:00:04]} 47. Nf1 {[%emt 0:00:05]} Nd6 {[%emt 0:00:04]} 48. Nd2 {[%emt 0:00:03]} Ne8 {[%emt 0:00:06]} 49. Nf1 {[%emt 0:00:04] Ke5 Ke4+} 1/2-1/2

[Event "WJCC U20 Girls 2019"]
[Site "New Delhi"]
[Date "2019.10.16"]
[Round "2.40"]
[White "Mirza, Diana"]
[Black "Shivika Rohilla"]
[Result "1/2-1/2"]
[ECO "C47"]
[WhiteElo "1986"]
[BlackElo "1721"]
[Annotator "NA RC"]
[PlyCount "117"]
[EventDate "2019.10.15"]
[EventType "swiss"]
[EventCountry "IND"]
[SourceTitle "playchess.com"]
[Source "ChessBase"]
[SourceQuality "1"]
[TimeControl "40/5400+30:1800+30"]

1. e4 {[%emt 0:00:00]} e5 {[%emt 0:00:00]} 2. Nf3 {[%emt 0:00:00]} Nc6 {[%emt 0:00:00]} 3. Nc3 {[%emt 0:00:00]} Nf6 {[%emt 0:00:00]} 4. g3 {[%emt 0:00:00]} Be7 {[%emt 0:15:45]} 5. Bg2 {[%emt 0:00:10]} O-O {[%emt 0:00:22]} 6. O-O {[%emt 0:01:05]} d6 {[%emt 0:01:10]} 7. d3 {[%emt 0:06:54]} Be6 {[%emt 0:19:57] C47: Scotch Four Knights and Four Knights with 4 g3} 8. h3 {[%emt 0:02:14]} h6 {[%emt 0:03:36]} 9. d4 {[%emt 0:04:52]} exd4 {[%emt 0:02:49]} 10. Nxd4 {[%emt 0:00:07]} Nxd4 {[%emt 0:00:28]} 11. Qxd4 {[%emt 0:00:02]} Qc8 {[%emt 0:10:10]} (11... Nd7 12. Nd5 Bxd5 13. Qxd5 c6 14. Qd1 f5 15. exf5 Rxf5 {1-0 (60) Schwabeneder,F (2455)-Kriebel,T (2517) Germany 2018}) 12. Kh2 {[%emt 0:00:27]} Nd7 $146 {[%emt 0:01:19]} ({Predecessor:} 12... c6) 13. Nd5 {[%emt 0:06:05]} Bxd5 {[%emt 0:00:20]} 14. exd5 {[%emt 0:01:39]} Bf6 {[%emt 0:00:19]} 15. Qg4 {[%emt 0:07:16]} Ne5 {[%emt 0:00:59]} 16. Qh5 {[%emt 0:00:44]} Nc4 {[%emt 0:05:01]} 17. Rb1 {[%emt 0:00:31]} Re8 {[%emt 0:00:59]} 18. b3 {[%emt 0:02:37]} Nb6 {[%emt 0:02:32]} 19. c4 {[%emt 0:12:56]} Re5 {[%emt 0:01:20]} 20. Qf3 {[%emt 0:00:53]} Nd7 {[%emt 0:07:53]} 21. Be3 {[%emt 0:06:16]} Re7 {[%emt 0:01:34]} 22. Rfc1 {[%emt 0:05:21]} b6 {[%emt 0:03:51]} 23. b4 {[%emt 0:02:01]} Rb8 {[%emt 0:00:28]} 24. Qg4 {[%emt 0:09:31]} Ne5 {[%emt 0:03:43]} 25. Qxc8+ {[%emt 0:00:37]} Rxc8 {[%emt 0:00:08]} 26. c5 {[%emt 0:00:20]} dxc5 {[%emt 0:00:38]} 27. bxc5 {[%emt 0:00:26]} Nd3 {[%emt 0:00:34]} 28. Rc4 {[%emt 0:03:44]} Nxc5 {[%emt 0:00:32]} 29. Bxc5 {[%emt 0:02:53]} bxc5 {[%emt 0:00:02]} 30. Rxc5 {[%emt 0:00:09]} Bd4 {[%emt 0:00:58]} 31. Rc2 {[%emt 0:01:10]} Rce8 {[%emt 0:01:55]} 32. Bf1 {[%emt 0:07:10]} Re1 {[%emt 0:02:40]} 33. Rxe1 {[%emt 0:00:29]} Rxe1 {[%emt 0:00:02]} 34. Bd3 {[%emt 0:00:17]} Bb6 {[%emt 0:00:46]} 35. d6 {[%emt 0:01:22]} Re8 {[%emt 0:05:54]} 36. Bb5 {[%emt 0:02:12]} Rd8 {[%emt 0:00:52]} 37. d7 {[%emt 0:01:26]} g6 {[%emt 0:00:44]} 38. Bc6 {[%emt 0:00:18]} Bd4 {[%emt 0:04:09]} 39. Rc4 {[%emt 0:01:11]} Bf6 {[%emt 0:00:28]} 40. Ra4 {[%emt 0:00:21]} Kf8 {[%emt 0:01:43]} 41. Rxa7 {[%emt 0:30:57]} Be5 {[%emt 0:32:29]} 42. f4 {[%emt 0:04:57]} Bd6 {[%emt 0:00:00]} 43. a4 {[%emt 0:00:00]} Ke7 $18 {[%emt 0:00:00]} 44. a5 {[%emt 0:00:00]} Bb4 {[%emt 0:00:00]} 45. Ra6 {[%emt 0:00:00]} Bc5 {[%emt 0:00:00]} 46. Kg2 {[%emt 0:00:00]} h5 {[%emt 0:00:00]} 47. Kf3 {[%emt 0:00:00]} Rb8 {[%emt 0:00:00]} 48. Ba4 {[%emt 0:00:00]} Bg1 {[%emt 0:00:00]} 49. g4 {[%emt 0:00:00]} hxg4+ {[%emt 0:00:00]} 50. Kxg4 {[%emt 0:00:00]} Be3 {[%emt 0:00:26]} 51. Kf3 {[%emt 0:00:45]} Bxf4 {[%emt 0:04:37]} 52. Bc6 {[%emt 0:06:00]} Bd6 {[%emt 0:00:06]} 53. Ra7 {[%emt 0:01:17]} Bc5 {[%emt 0:00:03]} 54. Rxc7 {[%emt 0:00:52]} Kd8 {[%emt 0:00:01]} 55. Rb7 {[%emt 0:05:14]} Rxb7 {[%emt 0:00:02]} 56. Bxb7 {[%emt 0:00:01]} Kxd7 {[%emt 0:00:02]} 57. Kf4 {[%emt 0:00:13]} f6 {[%emt 0:00:56]} 58. h4 {[%emt 0:00:24]} g5+ {[%emt 0:00:12]} 59. Ke4 1/2-1/2

[Event "WJCC U20 Girls 2019"]
[Site "New Delhi"]
[Date "2019.10.16"]
[Round "2.41"]
[White "Du Plessis, Anika"]
[Black "Vlkova, Anezka"]
[Result "0-1"]
[ECO "C05"]
[WhiteElo "1594"]
[BlackElo "1972"]
[Annotator "NA"]
[PlyCount "88"]
[EventDate "2019.10.15"]
[EventType "swiss"]
[EventCountry "IND"]
[SourceTitle "playchess.com"]
[Source "ChessBase"]
[SourceQuality "1"]
[TimeControl "40/5400+30:1800+30"]

1. e4 {[%emt 0:00:00]} e6 {[%emt 0:00:00]} 2. d4 {[%emt 0:00:00]} d5 {[%emt 0:00:00]} 3. Nd2 {[%emt 0:00:42]} Nf6 {[%emt 0:00:00]} 4. exd5 {[%emt 0:01:17]} exd5 {[%emt 0:00:06]} 5. Bd3 {[%emt 0:01:28]} c5 {[%emt 0:06:48]} 6. Ngf3 {[%emt 0:05:49]} c4 {[%emt 0:01:14]} 7. Be2 {[%emt 0:00:05]} Nc6 {[%emt 0:00:22]} 8. O-O {[%emt 0:00:21]} Bd6 {[%emt 0:00:43]} 9. Re1 {[%emt 0:01:25]} O-O {[%emt 0:00:27]} 10. Nf1 {[%emt 0:00:12]} h6 {[%emt 0:06:27]} 11. Bd2 {[%emt 0:03:25]} Bf5 {[%emt 0:06:16]} 12. Qc1 {[%emt 0:04:19]} b5 {[%emt 0:04:01]} 13. Ng3 {[%emt 0:07:43]} Bh7 {[%emt 0:01:40]} 14. a3 {[%emt 0:00:26]} Re8 {[%emt 0:03:20]} 15. c3 {[%emt 0:04:20]} Qc7 {[%emt 0:07:05]} 16. Bxh6 {[%emt 0:09:18]} Bxg3 {[%emt 0:05:46]} 17. hxg3 {[%emt 0:03:24]} gxh6 {[%emt 0:00:26]} 18. Qxh6 {[%emt 0:00:14]} Ne4 {[%emt 0:19:53]} 19. Ng5 {[%emt 0:08:22]} Bg6 {[%emt 0:04:59]} 20. Bh5 {[%emt 0:04:34]} Qd6 {[%emt 0:12:00]} 21. Nxe4 {[%emt 0:17:12]} dxe4 {[%emt 0:01:18]} 22. Re3 {[%emt 0:00:37]} Re6 {[%emt 0:01:57]} 23. Qg5 {[%emt 0:03:57]} a6 {[%emt 0:00:29]} 24. Bg4 {[%emt 0:02:01]} Ree8 {[%emt 0:01:43]} 25. Rae1 {[%emt 0:01:41]} Qd8 {[%emt 0:02:42]} 26. Qh6 {[%emt 0:02:48]} Ne7 {[%emt 0:00:57]} 27. f3 {[%emt 0:02:40]} Nd5 {[%emt 0:02:55]} 28. R3e2 {[%emt 0:00:44]} e3 {[%emt 0:02:51]} 29. f4 {[%emt 0:01:38]} Bd3 {[%emt 0:00:35]} 30. Bf3 {[%emt 0:02:50]} Bxe2 {[%emt 0:01:07]} 31. Rxe2 {[%emt 0:00:03]} Ra7 {[%emt 0:04:20]} 32. f5 {[%emt 0:02:13]} Qf6 {[%emt 0:00:26]} 33. Qh3 {[%emt 0:01:05]} Rd7 {[%emt 0:00:36]} 34. Qg4+ {[%emt 0:00:59]} Qg7 {[%emt 0:00:21]} 35. Qh3 {[%emt 0:00:07]} Rd6 {[%emt 0:00:32]} 36. Bxd5 {[%emt 0:01:40]} Rxd5 {[%emt 0:00:09]} 37. g4 {[%emt 0:00:21]} Qg5 {[%emt 0:00:38]} 38. Qf3 {[%emt 0:00:06]} Rd6 {[%emt 0:00:15]} 39. g3 {[%emt 0:02:25]} a5 {[%emt 0:00:18]} 40. Kg2 {[%emt 0:00:43]} b4 {[%emt 0:00:31]} 41. axb4 {[%emt 0:30:37]} axb4 {[%emt 0:30:08]} 42. Qf4 {[%emt 0:03:30]} Qxf4 {[%emt 0:00:00]} 43. gxf4 {[%emt 0:00:00]} bxc3 {[%emt 0:00:00]} 44. bxc3 {[%emt 0:00:00]} Rb6 {[%emt 0:00:00]} 0-1

[Event "WJCC U20 Girls 2019"]
[Site "New Delhi"]
[Date "2019.10.16"]
[Round "2.42"]
[White "Reid, Caitlin"]
[Black "Pandey Srishti"]
[Result "0-1"]
[ECO "B30"]
[WhiteElo "1489"]
[BlackElo "1963"]
[Annotator "NA"]
[PlyCount "52"]
[EventDate "2019.10.15"]
[EventType "swiss"]
[EventCountry "IND"]
[SourceTitle "playchess.com"]
[Source "ChessBase"]
[SourceQuality "1"]
[TimeControl "40/5400+30:1800+30"]

1. e4 {[%emt 0:00:00]} c5 {[%emt 0:00:00]} 2. Nf3 {[%emt 0:00:04]} Nc6 {[%emt 0:00:00]} 3. c3 {[%emt 0:00:46]} d5 {[%emt 0:00:00]} 4. e5 {[%emt 0:00:58]} Bg4 {[%emt 0:00:00]} 5. d4 {[%emt 0:01:14]} e6 {[%emt 0:00:00]} 6. Be3 {[%emt 0:01:30]} cxd4 {[%emt 0:00:04]} 7. cxd4 {[%emt 0:00:38]} Bb4+ {[%emt 0:01:08]} 8. Nc3 {[%emt 0:01:04]} Qa5 {[%emt 0:00:58]} 9. Qb3 {[%emt 0:00:29]} Nge7 {[%emt 0:01:05]} 10. a3 {[%emt 0:00:42]} Nf5 {[%emt 0:03:52]} 11. Rd1 {[%emt 0:05:09]} Bxc3+ {[%emt 0:00:09]} 12. bxc3 {[%emt 0:00:20]} O-O {[%emt 0:04:31]} 13. Be2 {[%emt 0:00:44]} Rac8 {[%emt 0:07:14]} 14. O-O {[%emt 0:00:48]} Nxe3 {[%emt 0:00:22]} 15. fxe3 {[%emt 0:00:23]} Ne7 {[%emt 0:00:22]} 16. c4 {[%emt 0:08:41]} dxc4 {[%emt 0:02:13]} 17. Bxc4 {[%emt 0:03:37]} Nd5 {[%emt 0:14:44]} 18. Rde1 {[%emt 0:05:37]} Bxf3 {[%emt 0:04:29]} 19. gxf3 {[%emt 0:02:59]} Rc6 {[%emt 0:07:16]} 20. Re2 {[%emt 0:37:15]} Rfc8 {[%emt 0:13:54]} 21. Bxd5 {[%emt 0:03:22]} exd5 {[%emt 0:00:52]} 22. Qxb7 {[%emt 0:03:53]} Qxa3 {[%emt 0:00:29]} 23. f4 {[%emt 0:00:59]} Qd3 {[%emt 0:01:11]} 24. Ref2 {[%emt 0:06:13]} Rg6+ {[%emt 0:02:38]} 25. Kh1 {[%emt 0:01:36]} Qe4+ {[%emt 0:00:15]} 26. Rf3 {[%emt 0:00:10]} Qxf3+ {[%emt 0:00:21]} 0-1

[Event "WJCC U20 Girls 2019"]
[Site "New Delhi"]
[Date "2019.10.16"]
[Round "2.43"]
[White "Meghna, C H"]
[Black "Lohani, Sujana"]
[Result "1-0"]
[ECO "B06"]
[WhiteElo "1956"]
[BlackElo "1671"]
[Annotator "NA"]
[PlyCount "60"]
[EventDate "2019.10.15"]
[EventType "swiss"]
[EventCountry "IND"]
[SourceTitle "playchess.com"]
[Source "ChessBase"]
[SourceQuality "1"]
[TimeControl "40/5400+30:1800+30"]

1. e4 {[%emt 0:00:00]} g6 {[%emt 0:00:07]} 2. d4 {[%emt 0:00:00]} Bg7 {[%emt 0:00:07]} 3. Nc3 {[%emt 0:00:06]} d6 {[%emt 0:00:16]} 4. Be3 {[%emt 0:00:14]} a6 {[%emt 0:00:28]} 5. Qd2 {[%emt 0:03:06]} b5 {[%emt 0:01:00]} 6. f3 {[%emt 0:02:17]} Nd7 {[%emt 0:01:31]} 7. O-O-O $14 {[%emt 0:07:32]} c5 {[%emt 0:10:10]} 8. dxc5 {[%emt 0:08:15]} b4 {[%emt 0:08:39]} 9. Nd5 {[%emt 0:09:50]} dxc5 {[%emt 0:22:25]} 10. Bxc5 {[%emt 0:02:08]} Qa5 {[%emt 0:02:56]} 11. Qxb4 {[%emt 0:09:27]} Qxa2 {[%emt 0:06:37]} 12. Bc4 {[%emt 0:32:17]} Qxb2+ {[%emt 0:14:01]} 13. Qxb2 {[%emt 0:00:07]} Bxb2+ {[%emt 0:00:19]} 14. Kxb2 {[%emt 0:00:02]} Rb8+ {[%emt 0:00:36]} 15. Kc1 {[%emt 0:01:18]} Nxc5 {[%emt 0:01:05]} 16. Nc7+ {[%emt 0:00:14]} Kf8 {[%emt 0:01:12]} 17. Rd8+ {[%emt 0:00:38]} Kg7 {[%emt 0:09:16]} 18. e5 {[%emt 0:13:26]} Nb7 {[%emt 0:10:10]} 19. Re8 {[%emt 0:02:46]} Nc5 {[%emt 0:03:26]} 20. Ne2 {[%emt 0:01:37]} e6 {[%emt 0:02:25]} 21. Rd1 {[%emt 0:00:59]} Nd7 {[%emt 0:02:41]} 22. Rxd7 {[%emt 0:02:00]} Bxd7 {[%emt 0:00:44]} 23. Rxb8 {[%emt 0:00:02]} a5 {[%emt 0:00:40]} 24. Rb7 {[%emt 0:00:34]} Bc6 {[%emt 0:00:31]} 25. Nxe6+ {[%emt 0:00:35]} Kh6 {[%emt 0:00:31]} 26. Rxf7 {[%emt 0:00:19]} Be8 {[%emt 0:00:34]} 27. Rf8 {[%emt 0:00:22]} Bd7 {[%emt 0:00:21]} 28. Nc5 {[%emt 0:00:16]} Bc6 {[%emt 0:00:41]} 29. Rxg8 {[%emt 0:01:02]} Rxg8 {[%emt 0:00:25]} 30. Bxg8 {[%emt 0:00:04]} Be8 {[%emt 0:00:00]} 1-0

[Event "WJCC U20 Girls 2019"]
[Site "New Delhi"]
[Date "2019.10.16"]
[Round "2.44"]
[White "Srimathi R"]
[Black "Rousseau, Christilla"]
[Result "1-0"]
[ECO "B19"]
[WhiteElo "1914"]
[BlackElo "1648"]
[Annotator "NA"]
[PlyCount "95"]
[EventDate "2019.10.15"]
[EventType "swiss"]
[EventCountry "IND"]
[SourceTitle "playchess.com"]
[Source "ChessBase"]
[SourceQuality "1"]
[TimeControl "40/5400+30:1800+30"]

1. e4 {[%emt 0:00:00]} c6 2. d4 {[%emt 0:00:01]} d5 {[%emt 0:00:00]} 3. Nc3 {[%emt 0:00:06]} dxe4 {[%emt 0:00:00]} 4. Nxe4 {[%emt 0:00:08]} Bf5 {[%emt 0:00:13]} 5. Ng3 {[%emt 0:00:09]} Bg6 {[%emt 0:00:26]} 6. h4 {[%emt 0:00:08]} h6 {[%emt 0:00:22]} 7. Nf3 {[%emt 0:00:08]} Nd7 {[%emt 0:00:21]} 8. h5 {[%emt 0:00:20]} Bh7 {[%emt 0:00:13]} 9. Bd3 {[%emt 0:00:17]} Bxd3 {[%emt 0:00:31]} 10. Qxd3 {[%emt 0:00:12]} e6 {[%emt 0:00:51]} 11. Bd2 {[%emt 0:00:49]} Ngf6 {[%emt 0:01:22]} 12. O-O-O {[%emt 0:03:44]} Be7 {[%emt 0:01:06]} 13. Ne4 {[%emt 0:01:12]} Nxe4 {[%emt 0:01:25]} 14. Qxe4 {[%emt 0:00:07]} Nf6 {[%emt 0:00:45]} 15. Qe2 {[%emt 0:00:16]} Qd5 {[%emt 0:02:49]} 16. c4 {[%emt 0:00:28]} Qe4 {[%emt 0:03:47]} 17. Qxe4 {[%emt 0:05:30]} Nxe4 {[%emt 0:00:11]} 18. Be3 {[%emt 0:00:12]} Rd8 {[%emt 0:10:32]} 19. g4 {[%emt 0:11:44]} f5 {[%emt 0:13:49]} 20. gxf5 {[%emt 0:09:18]} exf5 {[%emt 0:00:10]} 21. Ne5 {[%emt 0:00:39]} f4 {[%emt 0:07:11]} 22. Bxf4 {[%emt 0:01:42]} Nxf2 {[%emt 0:05:52]} 23. Ng6 {[%emt 0:00:16]} Nxd1 {[%emt 0:14:33]} 24. Re1 {[%emt 0:04:38]} Rd7 {[%emt 0:05:21]} 25. Nxh8 {[%emt 0:00:57]} Nf2 {[%emt 0:01:06]} 26. Kc2 {[%emt 0:03:36]} Kd8 {[%emt 0:06:35]} 27. Nf7+ {[%emt 0:07:59]} Ke8 {[%emt 0:04:32]} 28. Nd6+ {[%emt 0:01:14]} Kf8 {[%emt 0:02:13]} 29. Nf5 {[%emt 0:09:29]} Bf6 {[%emt 0:02:51]} 30. Re2 {[%emt 0:01:37]} Nh3 {[%emt 0:01:22]} 31. Be5 {[%emt 0:00:46]} Kf7 {[%emt 0:05:09]} 32. Nd6+ {[%emt 0:09:36]} Kf8 {[%emt 0:06:13]} 33. Bxf6 {[%emt 0:04:03]} gxf6 {[%emt 0:00:04]} 34. Re8+ {[%emt 0:00:17]} Kg7 {[%emt 0:00:07]} 35. Nf5+ {[%emt 0:00:13]} Kf7 {[%emt 0:02:15]} 36. Re4 {[%emt 0:02:15]} Ng5 {[%emt 0:00:36]} 37. Nxh6+ {[%emt 0:00:18]} Kg7 {[%emt 0:01:18]} 38. Nf5+ {[%emt 0:00:06]} Kh7 {[%emt 0:00:45]} 39. Re3 {[%emt 0:02:07]} Rf7 {[%emt 0:01:36]} 40. d5 {[%emt 0:01:42]} cxd5 {[%emt 0:00:23]} 41. cxd5 {[%emt 0:30:04]} Rd7 {[%emt 0:05:20]} 42. d6 {[%emt 0:00:00]} Rd8 {[%emt 0:05:51]} 43. Re7+ {[%emt 0:00:00]} Kg8 {[%emt 0:00:15]} 44. d7 {[%emt 0:00:00]} Kf8 {[%emt 0:01:06]} 45. h6 {[%emt 0:00:00]} Nf7 {[%emt 0:01:16]} 46. h7 {[%emt 0:00:00]} Nh8 {[%emt 0:02:59]} 47. Rg7 {[%emt 0:00:00]} b6 {[%emt 0:01:49]} 48. Rg8+ {[%emt 0:00:00]} 1-0